[Event "Late-Titled-Tuesday-Blitz-October-10-2023"]
[Site "Chess.com"]
[Date "2023.10.10"]
[Round "7"]
[White "Mykola-Bortnyk"]
[Black "ozates"]
[Result "0-1"]
[WhiteElo "2951"]
[BlackElo "2779"]
[TimeControl "180+1"]
[EndTime "15:12:53 PDT"]
[Termination "ozates won on time"]

1. e4 {[%clk 0:02:39.9]} 1... e5 {[%clk 0:02:57.5]} 2. Nf3 {[%clk 0:02:38.8]}
2... Nc6 {[%clk 0:02:56.8]} 3. Bb5 {[%clk 0:02:38.1]} 3... g6 {[%clk 0:02:55]}
4. c3 {[%clk 0:02:32.9]} 4... Bg7 {[%clk 0:02:54.3]} 5. O-O {[%clk 0:02:33.5]}
5... Nge7 {[%clk 0:02:53.9]} 6. d4 {[%clk 0:02:33.6]} 6... exd4 {[%clk
0:02:54.8]} 7. cxd4 {[%clk 0:02:34.5]} 7... a6 {[%clk 0:02:55.5]} 8. Ba4 {[%clk
0:02:34.8]} 8... b5 {[%clk 0:02:55.6]} 9. Bc2 {[%clk 0:02:33.4]} 9... O-O {[%clk
0:02:51.6]} 10. Nc3 {[%clk 0:02:27.3]} 10... d6 {[%clk 0:02:51]} 11. h3 {[%clk
0:02:26.8]} 11... h6 {[%clk 0:02:46.6]} 12. Re1 {[%clk 0:02:21.3]} 12... Na5
{[%clk 0:02:38.3]} 13. Bf4 {[%clk 0:02:07.3]} 13... Nc4 {[%clk 0:02:27.6]} 14.
Qc1 {[%clk 0:02:03.8]} 14... g5 {[%clk 0:02:27.5]} 15. Bg3 {[%clk 0:01:57.4]}
15... f5 {[%clk 0:02:26.5]} 16. b3 {[%clk 0:01:46.5]} 16... Nb6 {[%clk
0:02:24.8]} 17. exf5 {[%clk 0:01:38.2]} 17... Nxf5 {[%clk 0:02:24.9]} 18. Be4
{[%clk 0:01:25.9]} 18... Rb8 {[%clk 0:02:12.1]} 19. Bh2 {[%clk 0:01:19.6]} 19...
Nxd4 {[%clk 0:01:54.1]} 20. Nxd4 {[%clk 0:01:19.2]} 20... Bxd4 {[%clk 0:01:55]}
21. Bg3 {[%clk 0:01:20]} 21... Qf6 {[%clk 0:01:49.8]} 22. Nd5 {[%clk 0:01:20.5]}
22... Nxd5 {[%clk 0:01:44.3]} 23. Bxd5+ {[%clk 0:01:21.1]} 23... Kg7 {[%clk
0:01:42.5]} 24. Qxc7+ {[%clk 0:01:20.7]} 24... Kh8 {[%clk 0:00:59.7]} 25. Rad1
{[%clk 0:01:00.6]} 25... Bf5 {[%clk 0:00:40.5]} 26. Rxd4 {[%clk 0:00:53.9]}
26... Qxd4 {[%clk 0:00:38.5]} 27. Bxd6 {[%clk 0:00:54.4]} 27... Rbe8 {[%clk
0:00:21.5]} 28. Rxe8 {[%clk 0:00:25.7]} 28... Rxe8 {[%clk 0:00:20.9]} 29. Qf7
{[%clk 0:00:26.4]} 29... Bd7 {[%clk 0:00:07.2]} 30. Kh2 {[%clk 0:00:15.7]} 30...
Qg7 {[%clk 0:00:06.7]} 31. Qf3 {[%clk 0:00:13.4]} 31... g4 {[%clk 0:00:05.9]}
32. hxg4 {[%clk 0:00:13.7]} 32... Bxg4 {[%clk 0:00:05.7]} 33. Qg3 {[%clk
0:00:11.9]} 33... h5 {[%clk 0:00:05.3]} 34. Bc6 {[%clk 0:00:10]} 34... Re6
{[%clk 0:00:04.2]} 35. Bd7 {[%clk 0:00:08.8]} 35... h4 {[%clk 0:00:04.1]} 36.
Qf4 {[%clk 0:00:07]} 36... Rf6 {[%clk 0:00:03.2]} 37. Qe5 {[%clk 0:00:04.7]}
37... Bxd7 {[%clk 0:00:03.3]} 38. Qh5+ {[%clk 0:00:03.7]} 38... Rh6 {[%clk
0:00:03.6]} 39. Qe2 {[%clk 0:00:03.8]} 39... Rxd6 {[%clk 0:00:03.5]} 40. Qh5+
{[%clk 0:00:03.8]} 40... Rh6 {[%clk 0:00:03.7]} 41. Qe2 {[%clk 0:00:04.7]} 41...
Re6 {[%clk 0:00:03.9]} 42. Qh5+ {[%clk 0:00:04.7]} 42... Kg8 {[%clk 0:00:04.6]}
43. f4 {[%clk 0:00:04.3]} 43... Rg6 {[%clk 0:00:04.4]} 44. Kh1 {[%clk
0:00:04.1]} 44... Rxg2 {[%clk 0:00:03.9]} 45. Qd5+ {[%clk 0:00:04.8]} 45... Kf8
{[%clk 0:00:03.5]} 46. Qa8+ {[%clk 0:00:04.8]} 46... Ke7 {[%clk 0:00:03.9]} 47.
Qxg2 {[%clk 0:00:05.6]} 47... Qxg2+ {[%clk 0:00:03.8]} 48. Kxg2 {[%clk
0:00:06.5]} 48... h3+ {[%clk 0:00:04.6]} 49. Kg3 {[%clk 0:00:07.4]} 49... Kf6
{[%clk 0:00:05.3]} 0-1

[Event "Late-Titled-Tuesday-Blitz-October-10-2023"]
[Site "Chess.com"]
[Date "2023.10.10"]
[Round "7"]
[White "AleksandrAleksikov"]
[Black "EsmeraldasAnderson03"]
[Result "0-1"]
[WhiteElo "2265"]
[BlackElo "2427"]
[TimeControl "180+1"]
[EndTime "15:12:53 PDT"]
[Termination "EsmeraldasAnderson03 won on time"]

1. e4 {[%clk 0:03:00.9]} 1... c5 {[%clk 0:02:59.7]} 2. Nf3 {[%clk 0:03:00.2]}
2... d6 {[%clk 0:02:59.7]} 3. d4 {[%clk 0:02:59.9]} 3... cxd4 {[%clk 0:03:00.6]}
4. Nxd4 {[%clk 0:02:59.7]} 4... Nf6 {[%clk 0:03:01.5]} 5. Nc3 {[%clk 0:02:59.3]}
5... a6 {[%clk 0:03:02.4]} 6. Be2 {[%clk 0:02:58.4]} 6... e5 {[%clk 0:03:02.6]}
7. Nb3 {[%clk 0:02:54.6]} 7... Be7 {[%clk 0:03:03.1]} 8. Bg5 {[%clk 0:02:54]}
8... O-O {[%clk 0:03:02.9]} 9. Bxf6 {[%clk 0:02:50.9]} 9... Bxf6 {[%clk
0:03:02.4]} 10. Qd3 {[%clk 0:02:50.4]} 10... Be6 {[%clk 0:02:58.5]} 11. O-O-O
{[%clk 0:02:47.6]} 11... Be7 {[%clk 0:02:58.8]} 12. Nd5 {[%clk 0:02:43.6]} 12...
Bxd5 {[%clk 0:02:58.9]} 13. Qxd5 {[%clk 0:02:42.3]} 13... Qc7 {[%clk 0:02:59.5]}
14. Kb1 {[%clk 0:02:35.8]} 14... Nd7 {[%clk 0:02:55.4]} 15. c4 {[%clk
0:02:13.9]} 15... a5 {[%clk 0:02:49.1]} 16. a3 {[%clk 0:02:07.3]} 16... a4
{[%clk 0:02:46.6]} 17. Na1 {[%clk 0:02:03.2]} 17... Ra5 {[%clk 0:02:43.3]} 18.
Qd2 {[%clk 0:01:59.4]} 18... Ra6 {[%clk 0:02:36.2]} 19. Nc2 {[%clk 0:01:57.8]}
19... Nc5 {[%clk 0:02:36.5]} 20. f3 {[%clk 0:01:55.2]} 20... Nb3 {[%clk
0:02:34.6]} 21. Qd3 {[%clk 0:01:49.8]} 21... Nc5 {[%clk 0:02:11.9]} 22. Qe3
{[%clk 0:01:40.9]} 22... Ra7 {[%clk 0:01:51.6]} 23. Nb4 {[%clk 0:01:39.9]} 23...
Qd8 {[%clk 0:01:51.4]} 24. Nd5 {[%clk 0:01:31.3]} 24... Bg5 {[%clk 0:01:51.5]}
25. Qf2 {[%clk 0:01:25.6]} 25... Ra6 {[%clk 0:01:50.5]} 26. Nc3 {[%clk
0:01:24.2]} 26... Ne6 {[%clk 0:01:46.9]} 27. Nb5 {[%clk 0:01:22.3]} 27... Bf6
{[%clk 0:01:39.7]} 28. g3 {[%clk 0:01:07.3]} 28... Nd4 {[%clk 0:01:36.1]} 29.
Rxd4 {[%clk 0:00:59.9]} 29... exd4 {[%clk 0:01:37]} 30. f4 {[%clk 0:00:59.7]}
30... Re8 {[%clk 0:01:36.5]} 31. Bd3 {[%clk 0:00:58.4]} 31... Qb6 {[%clk
0:01:18.3]} 32. g4 {[%clk 0:00:53.3]} 32... g6 {[%clk 0:01:16.2]} 33. g5 {[%clk
0:00:52]} 33... Bg7 {[%clk 0:01:14.1]} 34. h4 {[%clk 0:00:51.8]} 34... Qc5
{[%clk 0:01:03]} 35. h5 {[%clk 0:00:48.1]} 35... Rb6 {[%clk 0:01:01]} 36. hxg6
{[%clk 0:00:41.7]} 36... hxg6 {[%clk 0:01:00.3]} 37. f5 {[%clk 0:00:39.7]} 37...
gxf5 {[%clk 0:00:47.2]} 38. exf5 {[%clk 0:00:38.7]} 38... f6 {[%clk 0:00:45.7]}
39. gxf6 {[%clk 0:00:30.2]} 39... Bxf6 {[%clk 0:00:46.6]} 40. Qg3+ {[%clk
0:00:24.1]} 40... Kf8 {[%clk 0:00:45.4]} 41. Qg6 {[%clk 0:00:19.6]} 41... Qe5
{[%clk 0:00:13.1]} 42. Nc7 {[%clk 0:00:13.8]} 42... d5 {[%clk 0:00:13.6]} 43.
Nxe8 {[%clk 0:00:11.5]} 43... Qxe8 {[%clk 0:00:14.5]} 44. Qxe8+ {[%clk
0:00:09.2]} 44... Kxe8 {[%clk 0:00:15.4]} 45. cxd5 {[%clk 0:00:08.2]} 45... Rd6
{[%clk 0:00:13.8]} 46. Rh6 {[%clk 0:00:06.5]} 46... Kf7 {[%clk 0:00:12.7]} 47.
Be4 {[%clk 0:00:05.7]} 47... Be5 {[%clk 0:00:10.2]} 48. Kc2 {[%clk 0:00:04.7]}
48... Rxh6 {[%clk 0:00:09.4]} 49. Kd3 {[%clk 0:00:02.8]} 49... Ke7 {[%clk
0:00:09.3]} 50. Kc4 {[%clk 0:00:02.7]} 50... Rb6 {[%clk 0:00:06.4]} 0-1

[Event "Late-Titled-Tuesday-Blitz-October-10-2023"]
[Site "Chess.com"]
[Date "2023.10.10"]
[Round "7"]
[White "protectiago"]
[Black "cthake"]
[Result "0-1"]
[WhiteElo "2059"]
[BlackElo "1965"]
[TimeControl "180+1"]
[EndTime "15:12:54 PDT"]
[Termination "cthake won on time"]

1. d4 {[%clk 0:02:42.2]} 1... Nf6 {[%clk 0:02:58.6]} 2. c4 {[%clk 0:02:42.3]}
2... g6 {[%clk 0:02:58.5]} 3. Nc3 {[%clk 0:02:41.8]} 3... d5 {[%clk 0:02:58.6]}
4. cxd5 {[%clk 0:02:40.1]} 4... Nxd5 {[%clk 0:02:58]} 5. e4 {[%clk 0:02:40.5]}
5... Nxc3 {[%clk 0:02:57.5]} 6. bxc3 {[%clk 0:02:41.1]} 6... Bg7 {[%clk
0:02:57.7]} 7. Be3 {[%clk 0:02:39.8]} 7... c5 {[%clk 0:02:57.6]} 8. Rc1 {[%clk
0:02:36.1]} 8... cxd4 {[%clk 0:02:55.9]} 9. cxd4 {[%clk 0:02:34.9]} 9... O-O
{[%clk 0:02:52.9]} 10. Qd2 {[%clk 0:02:32.9]} 10... Bd7 {[%clk 0:02:42.1]} 11.
Nf3 {[%clk 0:02:25.6]} 11... Nc6 {[%clk 0:02:29.2]} 12. d5 {[%clk 0:02:24.5]}
12... Ne5 {[%clk 0:02:26.7]} 13. Nxe5 {[%clk 0:02:24.6]} 13... Bxe5 {[%clk
0:02:25.9]} 14. f4 {[%clk 0:02:23.8]} 14... Bg7 {[%clk 0:02:24.5]} 15. Bc4
{[%clk 0:02:20.8]} 15... b5 {[%clk 0:02:22.5]} 16. Bb3 {[%clk 0:02:17]} 16... a5
{[%clk 0:02:11.8]} 17. O-O {[%clk 0:02:15.6]} 17... a4 {[%clk 0:02:09.6]} 18.
Bd1 {[%clk 0:02:12.7]} 18... Rc8 {[%clk 0:02:06.2]} 19. Bf3 {[%clk 0:02:12.3]}
19... Rxc1 {[%clk 0:01:49.2]} 20. Rxc1 {[%clk 0:02:11.5]} 20... Qb8 {[%clk
0:01:47.6]} 21. a3 {[%clk 0:01:53.6]} 21... Rc8 {[%clk 0:01:47.1]} 22. Rc5
{[%clk 0:01:45.6]} 22... Rxc5 {[%clk 0:01:35.7]} 23. Bxc5 {[%clk 0:01:44.8]}
23... e6 {[%clk 0:01:32.9]} 24. d6 {[%clk 0:01:19.5]} 24... Bf6 {[%clk
0:01:25.3]} 25. e5 {[%clk 0:01:18.4]} 25... Bd8 {[%clk 0:01:25]} 26. Qb4 {[%clk
0:01:15.1]} 26... Bb6 {[%clk 0:01:22.9]} 27. Kf2 {[%clk 0:01:06.5]} 27... Qa7
{[%clk 0:01:21]} 28. Bxb6 {[%clk 0:01:05.4]} 28... Qxb6+ {[%clk 0:01:21.1]} 29.
Kg3 {[%clk 0:01:01]} 29... h5 {[%clk 0:01:19.5]} 30. Qe4 {[%clk 0:00:50.6]}
30... Kg7 {[%clk 0:01:17.4]} 31. h4 {[%clk 0:00:43.6]} 31... Qc5 {[%clk
0:01:13.3]} 32. Qb7 {[%clk 0:00:40.7]} 32... Bc8 {[%clk 0:00:42.9]} 33. Qe7
{[%clk 0:00:19.6]} 33... Qxa3 {[%clk 0:00:35.2]} 34. Qd8 {[%clk 0:00:16]} 34...
Qc5 {[%clk 0:00:33.1]} 35. d7 {[%clk 0:00:15.7]} 35... Bxd7 {[%clk 0:00:28.6]}
36. Qxd7 {[%clk 0:00:15.7]} 36... a3 {[%clk 0:00:26.8]} 37. Qd2 {[%clk
0:00:11.2]} 37... b4 {[%clk 0:00:26.3]} 38. Qa2 {[%clk 0:00:09.9]} 38... Qc3
{[%clk 0:00:24]} 39. Kh2 {[%clk 0:00:08.1]} 39... Qd4 {[%clk 0:00:21.9]} 40. Qb3
{[%clk 0:00:05.9]} 40... Qxf4+ {[%clk 0:00:21.7]} 41. g3 {[%clk 0:00:06.2]}
41... Qd2+ {[%clk 0:00:20.9]} 42. Kh3 {[%clk 0:00:05.6]} 42... Qc3 {[%clk
0:00:18.3]} 43. Bd1 {[%clk 0:00:04.3]} 43... Qxe5 {[%clk 0:00:11.9]} 44. Qxb4
{[%clk 0:00:04.2]} 44... Qf5+ {[%clk 0:00:09.2]} 45. g4 {[%clk 0:00:03.2]} 45...
hxg4+ {[%clk 0:00:07.9]} 46. Bxg4 {[%clk 0:00:03.2]} 46... Qd3+ {[%clk 0:00:08]}
47. Kg2 {[%clk 0:00:02]} 47... Qc2+ {[%clk 0:00:07.3]} 48. Kg3 {[%clk
0:00:01.1]} 48... Qd3+ {[%clk 0:00:05.8]} 0-1

[Event "Late-Titled-Tuesday-Blitz-October-10-2023"]
[Site "Chess.com"]
[Date "2023.10.10"]
[Round "7"]
[White "Giorno"]
[Black "tylityli"]
[Result "1-0"]
[WhiteElo "2517"]
[BlackElo "2339"]
[TimeControl "180+1"]
[EndTime "15:12:56 PDT"]
[Termination "Giorno won on time"]

1. d4 {[%clk 0:03:00.9]} 1... Nf6 {[%clk 0:02:59.3]} 2. c3 {[%clk 0:03:01.2]}
2... d5 {[%clk 0:02:58.9]} 3. Bf4 {[%clk 0:03:00.8]} 3... c5 {[%clk 0:02:59.2]}
4. e3 {[%clk 0:03:00.3]} 4... Nc6 {[%clk 0:02:59]} 5. Nd2 {[%clk 0:03:00.3]}
5... cxd4 {[%clk 0:02:57.4]} 6. exd4 {[%clk 0:02:59.9]} 6... Bf5 {[%clk
0:02:57.5]} 7. Ngf3 {[%clk 0:02:59.4]} 7... e6 {[%clk 0:02:57.6]} 8. Nh4 {[%clk
0:02:55.6]} 8... Be4 {[%clk 0:02:52.3]} 9. Nhf3 {[%clk 0:02:51]} 9... Bf5 {[%clk
0:02:50.7]} 10. Bb5 {[%clk 0:02:46.5]} 10... Bd6 {[%clk 0:02:48.4]} 11. Ne5
{[%clk 0:02:42.6]} 11... O-O {[%clk 0:02:42]} 12. Bxc6 {[%clk 0:02:42]} 12...
bxc6 {[%clk 0:02:39.9]} 13. O-O {[%clk 0:02:42.3]} 13... Bxe5 {[%clk 0:02:30.7]}
14. Bxe5 {[%clk 0:02:41.3]} 14... Nd7 {[%clk 0:02:30.5]} 15. Bd6 {[%clk
0:02:36.8]} 15... Re8 {[%clk 0:02:30.2]} 16. Re1 {[%clk 0:02:37]} 16... a5
{[%clk 0:02:24.7]} 17. a4 {[%clk 0:02:34.4]} 17... Qb6 {[%clk 0:02:24.2]} 18. b4
{[%clk 0:02:25.4]} 18... f6 {[%clk 0:02:13]} 19. Nb3 {[%clk 0:02:22.6]} 19...
axb4 {[%clk 0:02:10.1]} 20. cxb4 {[%clk 0:02:18.8]} 20... e5 {[%clk 0:02:09.6]}
21. h3 {[%clk 0:02:00.5]} 21... Re6 {[%clk 0:01:57.1]} 22. Bc5 {[%clk 0:01:44]}
22... Nxc5 {[%clk 0:01:54.6]} 23. Nxc5 {[%clk 0:01:43.4]} 23... Re7 {[%clk
0:01:52.3]} 24. Qd2 {[%clk 0:01:40.7]} 24... Raa7 {[%clk 0:01:39.1]} 25. a5
{[%clk 0:01:35.9]} 25... Qb5 {[%clk 0:01:37.5]} 26. a6 {[%clk 0:01:36.3]} 26...
Bc8 {[%clk 0:01:27]} 27. Ra5 {[%clk 0:01:31.2]} 27... Qb6 {[%clk 0:01:25.4]} 28.
Rea1 {[%clk 0:01:26.2]} 28... Kf7 {[%clk 0:01:16.1]} 29. dxe5 {[%clk 0:01:14.2]}
29... Rxe5 {[%clk 0:01:11.5]} 30. Qc2 {[%clk 0:01:03.1]} 30... Bf5 {[%clk
0:01:08.9]} 31. Qc3 {[%clk 0:01:00.6]} 31... Bc8 {[%clk 0:00:59.3]} 32. Nd3
{[%clk 0:00:57.7]} 32... Re4 {[%clk 0:00:53.8]} 33. Qc5 {[%clk 0:00:56.4]} 33...
Qxc5 {[%clk 0:00:51.7]} 34. bxc5 {[%clk 0:00:55]} 34... Rd4 {[%clk 0:00:45.5]}
35. Ne1 {[%clk 0:00:43.8]} 35... Rc4 {[%clk 0:00:42.1]} 36. Nf3 {[%clk
0:00:43.2]} 36... d4 {[%clk 0:00:31.1]} 37. Rf1 {[%clk 0:00:38.5]} 37... Rxa6
{[%clk 0:00:28.9]} 38. Rxa6 {[%clk 0:00:38.6]} 38... Bxa6 {[%clk 0:00:28.9]} 39.
Rd1 {[%clk 0:00:39]} 39... Rxc5 {[%clk 0:00:27.2]} 40. Rxd4 {[%clk 0:00:39.5]}
40... Bb5 {[%clk 0:00:26.3]} 41. Rd7+ {[%clk 0:00:38.4]} 41... Kg6 {[%clk
0:00:26]} 42. Nh4+ {[%clk 0:00:37.4]} 42... Kg5 {[%clk 0:00:25.8]} 43. g3 {[%clk
0:00:33.1]} 43... Kh6 {[%clk 0:00:15.5]} 44. g4 {[%clk 0:00:20.7]} 44... g6
{[%clk 0:00:15.1]} 45. Rf7 {[%clk 0:00:20.8]} 45... Kg5 {[%clk 0:00:09]} 46. Ng2
{[%clk 0:00:20]} 46... Bc4 {[%clk 0:00:06.2]} 47. Rxh7 {[%clk 0:00:17.6]} 47...
f5 {[%clk 0:00:03.6]} 48. f4+ {[%clk 0:00:16.9]} 48... Kf6 {[%clk 0:00:03.3]}
49. g5+ {[%clk 0:00:17.5]} 49... Ke6 {[%clk 0:00:02]} 50. Rg7 {[%clk 0:00:18.4]}
1-0

[Event "Late-Titled-Tuesday-Blitz-October-10-2023"]
[Site "Chess.com"]
[Date "2023.10.10"]
[Round "7"]
[White "GMKrikor"]
[Black "Krakozia"]
[Result "1-0"]
[WhiteElo "2802"]
[BlackElo "2975"]
[TimeControl "180+1"]
[EndTime "15:12:59 PDT"]
[Termination "GMKrikor won on time"]

1. Nf3 {[%clk 0:03:00.9]} 1... c5 {[%clk 0:02:58.3]} 2. c4 {[%clk 0:03:00.3]}
2... Nf6 {[%clk 0:02:57.2]} 3. Nc3 {[%clk 0:02:58.9]} 3... e6 {[%clk 0:02:56.9]}
4. g3 {[%clk 0:02:56.7]} 4... b6 {[%clk 0:02:57.1]} 5. Bg2 {[%clk 0:02:57.3]}
5... Bb7 {[%clk 0:02:57.7]} 6. O-O {[%clk 0:02:57.8]} 6... Be7 {[%clk
0:02:57.9]} 7. Re1 {[%clk 0:02:58.2]} 7... d5 {[%clk 0:02:55.7]} 8. cxd5 {[%clk
0:02:59.1]} 8... Nxd5 {[%clk 0:02:55.3]} 9. e4 {[%clk 0:02:57.7]} 9... Nxc3
{[%clk 0:02:55.2]} 10. bxc3 {[%clk 0:02:57.5]} 10... O-O {[%clk 0:02:55.1]} 11.
d4 {[%clk 0:02:58.2]} 11... cxd4 {[%clk 0:02:54.9]} 12. cxd4 {[%clk 0:02:59.1]}
12... Nd7 {[%clk 0:02:54.6]} 13. Bb2 {[%clk 0:02:52.5]} 13... Nf6 {[%clk
0:02:37.7]} 14. Ne5 {[%clk 0:02:37.9]} 14... b5 {[%clk 0:02:37.7]} 15. Qb3
{[%clk 0:02:27.6]} 15... Qb6 {[%clk 0:02:33.3]} 16. Rad1 {[%clk 0:02:26]} 16...
Rad8 {[%clk 0:02:25.4]} 17. g4 {[%clk 0:02:15.8]} 17... a5 {[%clk 0:02:09.7]}
18. a4 {[%clk 0:02:12]} 18... Bb4 {[%clk 0:02:05.4]} 19. Re3 {[%clk 0:02:07]}
19... bxa4 {[%clk 0:02:04.7]} 20. Qxa4 {[%clk 0:02:07.9]} 20... Qc7 {[%clk
0:01:45]} 21. Rc1 {[%clk 0:01:54.3]} 21... Qe7 {[%clk 0:01:28.5]} 22. h3 {[%clk
0:01:45.9]} 22... h6 {[%clk 0:01:23.3]} 23. Nc6 {[%clk 0:01:36.4]} 23... Bxc6
{[%clk 0:01:16.8]} 24. Qxc6 {[%clk 0:01:37.3]} 24... Nd7 {[%clk 0:01:05.6]} 25.
e5 {[%clk 0:01:11.5]} 25... Qg5 {[%clk 0:01:04.8]} 26. Rf1 {[%clk 0:01:00.9]}
26... Qf4 {[%clk 0:00:58.7]} 27. Rd1 {[%clk 0:00:33.3]} 27... Nxe5 {[%clk
0:00:42.5]} 28. Rxe5 {[%clk 0:00:31.2]} 28... Qxe5 {[%clk 0:00:42.7]} 29. dxe5
{[%clk 0:00:31.3]} 29... Rxd1+ {[%clk 0:00:43.2]} 30. Kh2 {[%clk 0:00:29.6]}
30... Rd2 {[%clk 0:00:43.7]} 31. Bc1 {[%clk 0:00:24.1]} 31... Rxf2 {[%clk
0:00:43.1]} 32. Be3 {[%clk 0:00:23.5]} 32... Re2 {[%clk 0:00:41.7]} 33. Bf4
{[%clk 0:00:19.3]} 33... Rd8 {[%clk 0:00:37]} 34. Qc4 {[%clk 0:00:07.7]} 34...
Re1 {[%clk 0:00:26.5]} 35. h4 {[%clk 0:00:06.9]} 35... Red1 {[%clk 0:00:26]} 36.
Qe2 {[%clk 0:00:03.6]} 36... R1d7 {[%clk 0:00:21.7]} 37. h5 {[%clk 0:00:03.2]}
37... Be7 {[%clk 0:00:20]} 38. Qe3 {[%clk 0:00:03.2]} 38... a4 {[%clk
0:00:19.2]} 39. g5 {[%clk 0:00:03.2]} 39... Rd3 {[%clk 0:00:17.9]} 40. Qc1
{[%clk 0:00:03.5]} 40... a3 {[%clk 0:00:07.9]} 41. gxh6 {[%clk 0:00:03.7]} 41...
a2 {[%clk 0:00:07.5]} 42. hxg7 {[%clk 0:00:04.2]} 42... Ra3 {[%clk 0:00:06.6]}
43. Qa1 {[%clk 0:00:03.7]} 43... Bb4 {[%clk 0:00:05.1]} 44. h6 {[%clk
0:00:02.3]} 44... Bc3 {[%clk 0:00:04.6]} 45. Qf1 {[%clk 0:00:02.5]} 45... a1=Q
{[%clk 0:00:04.8]} 46. Qf3 {[%clk 0:00:02.8]} 46... Bxe5 {[%clk 0:00:04]} 47.
Qg4 {[%clk 0:00:01.8]} 47... Bxf4+ {[%clk 0:00:03.7]} 48. Qxf4 {[%clk
0:00:02.7]} 48... Qb1 {[%clk 0:00:03]} 49. Qg5 {[%clk 0:00:02.4]} 49... Rdd3
{[%clk 0:00:01.7]} 50. Qf6 {[%clk 0:00:01.9]} 1-0

[Event "Late-Titled-Tuesday-Blitz-October-10-2023"]
[Site "Chess.com"]
[Date "2023.10.10"]
[Round "7"]
[White "arminmusovic"]
[Black "The_Princess_Moon"]
[Result "0-1"]
[WhiteElo "2498"]
[BlackElo "2318"]
[TimeControl "180+1"]
[EndTime "15:13:01 PDT"]
[Termination "The_Princess_Moon won by resignation"]

1. a3 {[%clk 0:02:54.6]} 1... e5 {[%clk 0:02:58.7]} 2. d4 {[%clk 0:02:54.3]}
2... exd4 {[%clk 0:02:57.9]} 3. Qxd4 {[%clk 0:02:55.2]} 3... Nc6 {[%clk
0:02:58.3]} 4. Qa4 {[%clk 0:02:55]} 4... d5 {[%clk 0:02:57.1]} 5. Nf3 {[%clk
0:02:52.3]} 5... Bd7 {[%clk 0:02:56.5]} 6. Nc3 {[%clk 0:02:45.2]} 6... Nf6
{[%clk 0:02:55.9]} 7. Bg5 {[%clk 0:02:45]} 7... d4 {[%clk 0:02:46.8]} 8. Nxd4
{[%clk 0:02:37.4]} 8... Bc5 {[%clk 0:02:42.1]} 9. Nxc6 {[%clk 0:02:29.8]} 9...
Bxc6 {[%clk 0:02:43]} 10. Qh4 {[%clk 0:02:30]} 10... Qe7 {[%clk 0:02:30.7]} 11.
Bxf6 {[%clk 0:02:08.3]} 11... gxf6 {[%clk 0:02:29.4]} 12. e3 {[%clk 0:02:05.2]}
12... Rg8 {[%clk 0:02:25.9]} 13. Qc4 {[%clk 0:01:58.5]} 13... O-O-O {[%clk
0:02:19.9]} 14. Bd3 {[%clk 0:01:42.7]} 14... Bxe3 {[%clk 0:02:03.8]} 15. fxe3
{[%clk 0:01:26.5]} 15... Qxe3+ {[%clk 0:02:04.7]} 16. Ne2 {[%clk 0:01:06.3]}
16... Rxg2 {[%clk 0:01:59.8]} 17. Qc3 {[%clk 0:01:04.5]} 17... Rxe2+ {[%clk
0:01:51.7]} 18. Bxe2 {[%clk 0:01:04.4]} 18... Qxc3+ {[%clk 0:01:46.8]} 19. bxc3
{[%clk 0:01:04.6]} 19... Bxh1 {[%clk 0:01:46.8]} 20. Bd3 {[%clk 0:01:02.3]}
20... h6 {[%clk 0:01:42.5]} 21. O-O-O {[%clk 0:01:02.5]} 21... Bc6 {[%clk
0:01:35.2]} 22. Rg1 {[%clk 0:00:48.8]} 22... Rd5 {[%clk 0:01:22.6]} 23. Rf1
{[%clk 0:00:32]} 23... Rd6 {[%clk 0:01:18.1]} 24. Rg1 {[%clk 0:00:29.8]} 24...
Rd5 {[%clk 0:00:56.7]} 25. Rf1 {[%clk 0:00:28.5]} 25... Rh5 {[%clk 0:00:51.8]}
26. Rxf6 {[%clk 0:00:27]} 26... Bd5 {[%clk 0:00:48.5]} 27. h3 {[%clk 0:00:25.8]}
27... Be6 {[%clk 0:00:46.2]} 28. Bf1 {[%clk 0:00:15]} 28... Kd7 {[%clk
0:00:44.6]} 29. Kb2 {[%clk 0:00:13]} 29... Ke7 {[%clk 0:00:42]} 30. Rf3 {[%clk
0:00:13]} 30... Rf5 {[%clk 0:00:40.5]} 31. Bg2 {[%clk 0:00:09.8]} 31... Rxf3
{[%clk 0:00:38.6]} 32. Bxf3 {[%clk 0:00:10.7]} 32... c6 {[%clk 0:00:37.7]} 33.
h4 {[%clk 0:00:10.8]} 33... Bd5 {[%clk 0:00:33.4]} 34. Bh5 {[%clk 0:00:09]}
34... f5 {[%clk 0:00:32.6]} 35. a4 {[%clk 0:00:09.3]} 35... f4 {[%clk
0:00:32.6]} 36. Kc1 {[%clk 0:00:09.2]} 36... Kf6 {[%clk 0:00:31.3]} 37. Kd2
{[%clk 0:00:09]} 37... Bc4 {[%clk 0:00:30]} 38. a5 {[%clk 0:00:08.4]} 38... Kf5
{[%clk 0:00:28.1]} 39. Bf3 {[%clk 0:00:08.7]} 39... Bd5 {[%clk 0:00:26.8]} 40.
Be2 {[%clk 0:00:05.5]} 40... Ke4 {[%clk 0:00:25.3]} 41. c4 {[%clk 0:00:04.6]}
41... Bf7 {[%clk 0:00:22.3]} 42. c5 {[%clk 0:00:04.3]} 42... f3 {[%clk 0:00:22]}
43. Bf1 {[%clk 0:00:03.8]} 43... Bd5 {[%clk 0:00:20.6]} 44. c4 {[%clk
0:00:03.6]} 44... Be6 {[%clk 0:00:19.6]} 45. Kc3 {[%clk 0:00:03.4]} 45... Ke3
{[%clk 0:00:19]} 46. a6 {[%clk 0:00:03.3]} 46... bxa6 {[%clk 0:00:18.5]} 47. Kb4
{[%clk 0:00:03.9]} 47... Bf5 {[%clk 0:00:16.7]} 48. Ka5 {[%clk 0:00:04.1]} 48...
Kf2 {[%clk 0:00:16.6]} 49. Kxa6 {[%clk 0:00:03.3]} 49... Kxf1 {[%clk 0:00:16.6]}
50. Kxa7 {[%clk 0:00:04.2]} 50... Ke2 {[%clk 0:00:16.2]} 51. Kb6 {[%clk
0:00:05.1]} 51... Be4 {[%clk 0:00:16.6]} 52. Kc7 {[%clk 0:00:05.8]} 52... f2
{[%clk 0:00:17.5]} 53. Kd6 {[%clk 0:00:06.7]} 53... f1=Q {[%clk 0:00:17.6]} 54.
Kc7 {[%clk 0:00:07.6]} 54... Qf4+ {[%clk 0:00:17.4]} 55. Kb6 {[%clk 0:00:08.5]}
55... Qb8+ {[%clk 0:00:16.5]} 56. Ka5 {[%clk 0:00:09.4]} 56... Kd3 {[%clk
0:00:13.6]} 57. h5 {[%clk 0:00:10.3]} 57... Qa7+ {[%clk 0:00:13.1]} 58. Kb4
{[%clk 0:00:10.5]} 58... Qb7+ {[%clk 0:00:12.5]} 59. Ka5 {[%clk 0:00:10.9]}
59... Kxc4 {[%clk 0:00:12.2]} 0-1